EXTRACTDATE,PUBLISHERURI,ORGANISATIONLABEL,EXPENSE DATE,VENDOR NAME ,COST CENTRE NAME,SUBJECTIVE DESCRIPTION,REQUESTED EXPENSE AMOUNT
09/09/2021,,LB of Brent,01/06/2021,Screwfix Dir Ltd,GORDON BROWN OUTDOOR EDUCATION CENTRE,CYCLICAL/PLANNED MAINTENANCE - BUILDING,7.98
09/09/2021,,LB of Brent,01/06/2021,123 Reg Ltd,CIVIC CENTRE CONFERENCE & EVENTS,ICT LICENCES,127.93
09/09/2021,,LB of Brent,01/06/2021,Google Ads4976103558,CIVIC CENTRE CONFERENCE & EVENTS,"ADVERTISING, PUBLICITY AND MARKETING",249.26
09/09/2021,,LB of Brent,01/06/2021,Flickr Pro Monthly,DIGITAL COMMS,ICT MAINTENANCE AND SUPPORT,5.41
09/09/2021,,LB of Brent,02/06/2021,London Borough Of Harr,Neighbourhood Services - Estate Services,LEGAL FEES,12.00
09/09/2021,,LB of Brent,02/06/2021,Tesco Stores Ltd 6468,EMERGENCY PLANNING,CATERING AND VENDING SUPPLIES,71.55
09/09/2021,,LB of Brent,02/06/2021,Tesco Store 2122,SHORT BREAK CENTRE,CATERING AND VENDING SUPPLIES,175.66
09/09/2021,,LB of Brent,02/06/2021,Entrust Gbp,BRENT SICTS,ICT SOFTWARE,117.33
09/09/2021,,LB of Brent,02/06/2021,Posturite Ltd,GOVERNANCE & CIVIC,"PURCHASE - EQUIPMENT, FURNITURE AND MATERIALS",113.11
09/09/2021,,LB of Brent,03/06/2021,Poundland Ltd 1584,GORDON BROWN OUTDOOR EDUCATION CENTRE,CATERING AND VENDING SUPPLIES,11.04
09/09/2021,,LB of Brent,03/06/2021,Www.Dominos.Co.Uk,EARLY YEARS CENTRAL SERVICES,CATERING AND VENDING SUPPLIES,30.97
09/09/2021,,LB of Brent,03/06/2021,Sainsburys.Co.Uk,EARLY YEARS CENTRAL SERVICES,CATERING AND VENDING SUPPLIES,35.80
09/09/2021,,LB of Brent,03/06/2021,Aws Emea,ICT Client and Applications Support,ICT SOFTWARE,1.26
09/09/2021,,LB of Brent,03/06/2021,Msft * E0800enrd6,BRENT SICTS,ICT SOFTWARE,176.86
09/09/2021,,LB of Brent,03/06/2021,Amznmktplace,FACILITIES MANAGEMENT � CIVIC CENTRE,"PURCHASE - EQUIPMENT, FURNITURE AND MATERIALS",133.46
09/09/2021,,LB of Brent,03/06/2021,C K Office Furnitu,COMMUNITY CHAMPIONS,"PURCHASE - EQUIPMENT, FURNITURE AND MATERIALS","1,840.00"
09/09/2021,,LB of Brent,05/06/2021,Www.Just Eat.Co.Uk,EARLY YEARS CENTRAL SERVICES,CATERING AND VENDING SUPPLIES,36.95
09/09/2021,,LB of Brent,06/06/2021,Amazon.Co.Uk,BRENT SICTS,ICT HARDWARE,39.43
09/09/2021,,LB of Brent,06/06/2021,Amazon.Co.Uk,LEWISHAM IT SHARED SERVICE,ICT HARDWARE,32.98
09/09/2021,,LB of Brent,06/06/2021,Amazon.Co.Uk,SOUTHWARK IT SHARED SERVICE,ICT HARDWARE,56.56
09/09/2021,,LB of Brent,07/06/2021,Www.Ico.Org.Uk,I4B PROPERTY MANAGEMENT,CONSULTANCY FEES,40.00
09/09/2021,,LB of Brent,08/06/2021,Asda Groceries Online,WILLOWS NURSERY,CATERING AND VENDING SUPPLIES,40.95
09/09/2021,,LB of Brent,08/06/2021,Google,DIGITAL COMMS,ICT MAINTENANCE AND SUPPORT,219.66
09/09/2021,,LB of Brent,08/06/2021,Www.Banneruk.Com,COMMUNITY CHAMPIONS,"PURCHASE - EQUIPMENT, FURNITURE AND MATERIALS",900.00
09/09/2021,,LB of Brent,04/06/2021,Dri*,BRENT SICTS,ICT HARDWARE,26.18
09/09/2021,,LB of Brent,08/06/2021,Amznmktplace Amazon.Co.Uk,NEIGHBOURHOOD OPERATIONS,"PURCHASE - EQUIPMENT, FURNITURE AND MATERIALS",29.88
09/09/2021,,LB of Brent,09/06/2021,Poundland Ltd 1584,GORDON BROWN OUTDOOR EDUCATION CENTRE,CATERING AND VENDING SUPPLIES,19.17
09/09/2021,,LB of Brent,09/06/2021,Tesco Store 2080,GORDON BROWN OUTDOOR EDUCATION CENTRE,CATERING AND VENDING SUPPLIES,24.40
09/09/2021,,LB of Brent,09/06/2021,Tesco Store 2122,SHORT BREAK CENTRE,CATERING AND VENDING SUPPLIES,156.97
09/09/2021,,LB of Brent,09/06/2021,Amznmktplace,CORE COMMUNICATIONS,"PURCHASE - EQUIPMENT, FURNITURE AND MATERIALS",19.99
09/09/2021,,LB of Brent,09/06/2021,Amznmktplace,CORE COMMUNICATIONS,"PURCHASE - EQUIPMENT, FURNITURE AND MATERIALS",19.99
09/09/2021,,LB of Brent,09/06/2021,Amznmktplace,POLITICAL GROUP SUPPORT,"PURCHASE - EQUIPMENT, FURNITURE AND MATERIALS",19.99
09/09/2021,,LB of Brent,11/06/2021,Mailboxes (Gb) Ltd,I4B PROPERTY MANAGEMENT,"MAINTENANCE - EQUIPMENT, FURNITURE AND MATERIALS",435.65
09/09/2021,,LB of Brent,11/06/2021,Amazon Prime,BRENT SICTS,POSTAGE AND COURIER SERVICES,2.03
09/09/2021,,LB of Brent,11/06/2021,Amazon Prime,LEWISHAM IT SHARED SERVICE,POSTAGE AND COURIER SERVICES,1.70
09/09/2021,,LB of Brent,11/06/2021,Amazon Prime,SOUTHWARK IT SHARED SERVICE,POSTAGE AND COURIER SERVICES,2.93
09/09/2021,,LB of Brent,12/06/2021,Www.Just Eat.Co.Uk,EARLY YEARS CENTRAL SERVICES,CATERING AND VENDING SUPPLIES,33.80
09/09/2021,,LB of Brent,13/06/2021,Namesco,ONE ORACLE,ICT SOFTWARE,3.49
09/09/2021,,LB of Brent,13/06/2021,Zoom.Us 888-799-9666,SOUTHWARK IT SHARED SERVICE,ICT SOFTWARE,112.00
09/09/2021,,LB of Brent,14/06/2021,Pp*legal Action Group,SINGLE HOMELESSNESS TEAM,LEGAL FEES,390.00
09/09/2021,,LB of Brent,14/06/2021,Zoom.Us 888-799-9666,SOUTHWARK IT SHARED SERVICE,ICT SOFTWARE,"2,494.88"
09/09/2021,,LB of Brent,14/06/2021,Amznmktplace Amazon.Co.Uk,TRANSFORMATION TEAM,"PURCHASE - EQUIPMENT, FURNITURE AND MATERIALS",20.73
09/09/2021,,LB of Brent,15/06/2021,B & Q 1017,GORDON BROWN OUTDOOR EDUCATION CENTRE,CYCLICAL/PLANNED MAINTENANCE - BUILDING,69.52
09/09/2021,,LB of Brent,15/06/2021,Tesco Store 2080,GORDON BROWN OUTDOOR EDUCATION CENTRE,CATERING AND VENDING SUPPLIES,119.79
09/09/2021,,LB of Brent,15/06/2021,Shorts Group Ltd,GORDON BROWN OUTDOOR EDUCATION CENTRE,"MAINTENANCE - EQUIPMENT, FURNITURE AND MATERIALS",349.33
09/09/2021,,LB of Brent,15/06/2021,Amznmktplace,MAYOR,STATIONERY,7.49
09/09/2021,,LB of Brent,15/06/2021,Gift Card,PROJECT 2023,PROFESSIONAL SERVICES - GENERAL,320.00
09/09/2021,,LB of Brent,15/06/2021,Bls*monday.Com,BRENT SICTS,ICT SOFTWARE,66.00
09/09/2021,,LB of Brent,15/06/2021,Www.Brentgov.Uk,Neighbourhood Services - Estate Services,LEGAL FEES,11.00
09/09/2021,,LB of Brent,15/06/2021,Absoluteind,GORDON BROWN OUTDOOR EDUCATION CENTRE,CYCLICAL/PLANNED MAINTENANCE - BUILDING,28.50
09/09/2021,,LB of Brent,16/06/2021,Tesco Store 2080,GORDON BROWN OUTDOOR EDUCATION CENTRE,"MAINTENANCE - EQUIPMENT, FURNITURE AND MATERIALS",41.67
09/09/2021,,LB of Brent,16/06/2021,C I H,TRAINING COSTS - LEARNING & STAFF DEVELOPMENT,CONFERENCE EXPENSES,135.00
09/09/2021,,LB of Brent,16/06/2021,Tesco Store 2122,SHORT BREAK CENTRE,CATERING AND VENDING SUPPLIES,147.84
09/09/2021,,LB of Brent,16/06/2021,Pantheon Systems Inc,DIGITAL COMMS,ICT MAINTENANCE AND SUPPORT,25.78
09/09/2021,,LB of Brent,17/06/2021,Adobe.Com,HR SERVICES,"ADVERTISING, PUBLICITY AND MARKETING",19.97
09/09/2021,,LB of Brent,17/06/2021,Posturite Ltd,TRANSFORMATION TEAM,"PURCHASE - EQUIPMENT, FURNITURE AND MATERIALS",18.99
09/09/2021,,LB of Brent,17/06/2021,Amazon.Co.Uk,FACILITIES MANAGEMENT � CIVIC CENTRE,"PURCHASE - EQUIPMENT, FURNITURE AND MATERIALS",27.42
09/09/2021,,LB of Brent,17/06/2021,Amznmktplace,CIVIC CENTRE - AV,"PURCHASE - EQUIPMENT, FURNITURE AND MATERIALS",80.13
09/09/2021,,LB of Brent,17/06/2021,Facebk *xnj9r5ftv2,CAMPAIGNS AND MEDIA,"ADVERTISING, PUBLICITY AND MARKETING",500.00
09/09/2021,,LB of Brent,17/06/2021,Amznmktplace,PUBLIC HEALTH OPERATIONAL,"PURCHASE - EQUIPMENT, FURNITURE AND MATERIALS",298.00
09/09/2021,,LB of Brent,17/06/2021,Source Londonltd,Neighbourhood Services - Estate Services,TRANSPORT COSTS - STAFF,3.33
09/09/2021,,LB of Brent,17/06/2021,Sainsburys S/Mkts,BRENT FAMILY SOLUTIONS,MISCELLANEOUS EXPENSES,20.00
09/09/2021,,LB of Brent,18/06/2021,County Court,Disrepair,COMPENSATION,815.30
09/09/2021,,LB of Brent,18/06/2021,Jj Food Service - Basi,GORDON BROWN OUTDOOR EDUCATION CENTRE,CATERING AND VENDING SUPPLIES,183.78
09/09/2021,,LB of Brent,18/06/2021,Amznmktplace,POLITICAL GROUP SUPPORT,"PURCHASE - EQUIPMENT, FURNITURE AND MATERIALS",24.99
09/09/2021,,LB of Brent,18/06/2021,Amznmktplace,Customer Response Compensation,"PURCHASE - EQUIPMENT, FURNITURE AND MATERIALS",62.95
09/09/2021,,LB of Brent,18/06/2021,Www.Local.Gov.Uk,MEMBER DEVELOPMENT,CONFERENCE EXPENSES,179.00
09/09/2021,,LB of Brent,18/06/2021,Facebk *vss3s5ftv2,CAMPAIGNS AND MEDIA,"ADVERTISING, PUBLICITY AND MARKETING",500.00
09/09/2021,,LB of Brent,18/06/2021,Posturite Ltd,TRANSFORMATION TEAM,"PURCHASE - EQUIPMENT, FURNITURE AND MATERIALS",452.64
09/09/2021,,LB of Brent,18/06/2021,Elite Industrial Suppl,PUBLIC HEALTH OPERATIONAL,"PURCHASE - EQUIPMENT, FURNITURE AND MATERIALS",104.39
09/09/2021,,LB of Brent,19/06/2021,Amazon.Co.Uk,CUSTOMER ACCESS IMPROVEMENT & PERFORMANCE,"PURCHASE - EQUIPMENT, FURNITURE AND MATERIALS",8.25
09/09/2021,,LB of Brent,19/06/2021,Atlassian,DIGITAL COMMS,ICT MAINTENANCE AND SUPPORT,7.47
09/09/2021,,LB of Brent,20/06/2021,Hotjar,DIGITAL COMMS,ICT MAINTENANCE AND SUPPORT,34.53
09/09/2021,,LB of Brent,20/06/2021,Namesco,MOPAC Rescue and Response,ICT SOFTWARE,3.49
09/09/2021,,LB of Brent,21/06/2021,Screwfix Dir Ltd,GORDON BROWN OUTDOOR EDUCATION CENTRE,CYCLICAL/PLANNED MAINTENANCE - BUILDING,23.28
09/09/2021,,LB of Brent,21/06/2021,Screwfix Dir Ltd,GORDON BROWN OUTDOOR EDUCATION CENTRE,CYCLICAL/PLANNED MAINTENANCE - BUILDING,31.79
09/09/2021,,LB of Brent,21/06/2021,Tesco Store 2080,GORDON BROWN OUTDOOR EDUCATION CENTRE,CATERING AND VENDING SUPPLIES,50.32
09/09/2021,,LB of Brent,21/06/2021,The Range,GORDON BROWN OUTDOOR EDUCATION CENTRE,CATERING AND VENDING SUPPLIES,57.43
09/09/2021,,LB of Brent,21/06/2021,Screwfix Dir Ltd,GORDON BROWN OUTDOOR EDUCATION CENTRE,CYCLICAL/PLANNED MAINTENANCE - BUILDING,166.66
09/09/2021,,LB of Brent,21/06/2021,Amznmktplace,REVENUES,"PURCHASE - EQUIPMENT, FURNITURE AND MATERIALS",25.33
09/09/2021,,LB of Brent,21/06/2021,Speedy Sameday Courier,ACCOUNTS PAYABLE,POSTAGE AND COURIER SERVICES,63.00
09/09/2021,,LB of Brent,22/06/2021,Amznmktplace,REVENUES,"PURCHASE - EQUIPMENT, FURNITURE AND MATERIALS",25.33
09/09/2021,,LB of Brent,22/06/2021,Basingstoke Blt & Tl Ltd,GORDON BROWN OUTDOOR EDUCATION CENTRE,CYCLICAL/PLANNED MAINTENANCE - BUILDING,6.03
09/09/2021,,LB of Brent,22/06/2021,Tesco Store 2080,GORDON BROWN OUTDOOR EDUCATION CENTRE,CATERING AND VENDING SUPPLIES,34.67
09/09/2021,,LB of Brent,22/06/2021,Amazon.Co.Uk,CUSTOMER ACCESS IMPROVEMENT & PERFORMANCE,"PURCHASE - EQUIPMENT, FURNITURE AND MATERIALS",11.87
09/09/2021,,LB of Brent,22/06/2021,Amazon.Co.Uk,CHILDREN'S SOCIAL CARE BUSINESS SUPPORT,"PURCHASE - EQUIPMENT, FURNITURE AND MATERIALS",24.99
09/09/2021,,LB of Brent,22/06/2021,Companies House,LEGAL SUPPORT,LEGAL FEES,15.00
09/09/2021,,LB of Brent,22/06/2021,Tfl Business Bops Web,MAYOR,OTHER VEHICLE COSTS,15.00
09/09/2021,,LB of Brent,23/06/2021,London Executive,Disrepair,COMPENSATION,"2,068.10"
09/09/2021,,LB of Brent,23/06/2021,Tesco Store 2122,SHORT BREAK CENTRE,CATERING AND VENDING SUPPLIES,174.18
09/09/2021,,LB of Brent,24/06/2021,Amznmktplace,CUSTOMER ACCESS IMPROVEMENT & PERFORMANCE,"PURCHASE - EQUIPMENT, FURNITURE AND MATERIALS",6.41
09/09/2021,,LB of Brent,24/06/2021,Amazon.Co.Uk,ICST EXTERNAL FUNDING,"BOOKS, PUBLICATIONS AND RESOURCES",11.38
09/09/2021,,LB of Brent,24/06/2021,Amazon.Co.Uk,TRANSFORMATION TEAM,STATIONERY,12.38
09/09/2021,,LB of Brent,24/06/2021,Amznmktplace,CLIMATE EMERGENCY BUDGET,"PURCHASE - EQUIPMENT, FURNITURE AND MATERIALS",146.63
09/09/2021,,LB of Brent,24/06/2021,Spotify,CAMPAIGNS AND MEDIA,"ADVERTISING, PUBLICITY AND MARKETING",263.30
09/09/2021,,LB of Brent,25/06/2021,Tesco Store 2670,GORDON BROWN OUTDOOR EDUCATION CENTRE,CATERING AND VENDING SUPPLIES,12.50
09/09/2021,,LB of Brent,25/06/2021,Amazon.Co.Uk,CUSTOMER ACCESS IMPROVEMENT & PERFORMANCE,"PURCHASE - EQUIPMENT, FURNITURE AND MATERIALS",7.72
09/09/2021,,LB of Brent,25/06/2021,Amazon.Co.Uk,CUSTOMER ACCESS IMPROVEMENT & PERFORMANCE,"PURCHASE - EQUIPMENT, FURNITURE AND MATERIALS",8.25
09/09/2021,,LB of Brent,25/06/2021,Amazon.Co.Uk,CUSTOMER ACCESS IMPROVEMENT & PERFORMANCE,"PURCHASE - EQUIPMENT, FURNITURE AND MATERIALS",8.25
09/09/2021,,LB of Brent,25/06/2021,Leavingcard.Com,SOCIAL SERVICES DIRECTORATE,AGENCY STAFF,2.49
09/09/2021,,LB of Brent,25/06/2021,Www.Pclcorporatewear.C,CIVIC CENTRE CONFERENCE & EVENTS,"PURCHASE - EQUIPMENT, FURNITURE AND MATERIALS",114.30
09/09/2021,,LB of Brent,28/06/2021,City Plumbing Supp,GORDON BROWN OUTDOOR EDUCATION CENTRE,CYCLICAL/PLANNED MAINTENANCE - BUILDING,1.11
09/09/2021,,LB of Brent,28/06/2021,Tesco Store 2670,GORDON BROWN OUTDOOR EDUCATION CENTRE,CATERING AND VENDING SUPPLIES,3.88
09/09/2021,,LB of Brent,28/06/2021,Tesco Store 2080,GORDON BROWN OUTDOOR EDUCATION CENTRE,CATERING AND VENDING SUPPLIES,31.71
09/09/2021,,LB of Brent,28/06/2021,The Range,GORDON BROWN OUTDOOR EDUCATION CENTRE,"MAINTENANCE - EQUIPMENT, FURNITURE AND MATERIALS",58.32
09/09/2021,,LB of Brent,28/06/2021,Jj Food Service - Basi,GORDON BROWN OUTDOOR EDUCATION CENTRE,CATERING AND VENDING SUPPLIES,83.66
09/09/2021,,LB of Brent,28/06/2021,Paypal,HR OPERATIONAL,ICT MAINTENANCE AND SUPPORT,127.36
09/09/2021,,LB of Brent,29/06/2021,Tesco Store 2670,GORDON BROWN OUTDOOR EDUCATION CENTRE,CATERING AND VENDING SUPPLIES,12.50
09/09/2021,,LB of Brent,29/06/2021,Amznmktplace,TRANSFORMATION TEAM,STATIONERY,23.78
09/09/2021,,LB of Brent,29/06/2021,Facebk *s8wp26ftv2,CAMPAIGNS AND MEDIA,"ADVERTISING, PUBLICITY AND MARKETING",426.56
09/09/2021,,LB of Brent,29/06/2021,Companies House,LEGAL SUPPORT,LEGAL FEES,15.00
09/09/2021,,LB of Brent,29/06/2021,Intellisoftware Ltd,SOUTHWARK SICTS CONSUMABLES,ICT SOFTWARE,10.00
09/09/2021,,LB of Brent,30/06/2021,Amznmktplace,Communications,STATIONERY,10.37
09/09/2021,,LB of Brent,30/06/2021,Amazon.Co.Uk,FACILITIES MANAGEMENT � EUROPA CONTRACT,STATIONERY,28.73
09/09/2021,,LB of Brent,30/06/2021,Spotify,CAMPAIGNS AND MEDIA,"ADVERTISING, PUBLICITY AND MARKETING",305.03
09/09/2021,,LB of Brent,30/06/2021,Tesco Store 2122,SHORT BREAK CENTRE,CATERING AND VENDING SUPPLIES,134.29
09/09/2021,,LB of Brent,01/07/2021,Www.Psf.Co.Uk,Central Overheads,HEALTH AND SAFETY WORKS,46.62
09/09/2021,,LB of Brent,01/07/2021,Tesco Store 2080,GORDON BROWN OUTDOOR EDUCATION CENTRE,CATERING AND VENDING SUPPLIES,66.47
09/09/2021,,LB of Brent,01/07/2021,Spotify,CAMPAIGNS AND MEDIA,"ADVERTISING, PUBLICITY AND MARKETING",47.94
09/09/2021,,LB of Brent,01/07/2021,Amazon.Co.Uk,TRANSFORMATION TEAM,"PURCHASE - EQUIPMENT, FURNITURE AND MATERIALS",55.03
09/09/2021,,LB of Brent,01/07/2021,Facebk Umbu6pkj92,CIVIC CENTRE CONFERENCE & EVENTS,"ADVERTISING, PUBLICITY AND MARKETING",92.51
09/09/2021,,LB of Brent,01/07/2021,Google Ads4976103558,CIVIC CENTRE CONFERENCE & EVENTS,"ADVERTISING, PUBLICITY AND MARKETING",242.41
09/09/2021,,LB of Brent,01/07/2021,Flickr Pro Monthly,DIGITAL COMMS,ICT MAINTENANCE AND SUPPORT,5.41
09/09/2021,,LB of Brent,01/07/2021,Companies House,LEGAL SUPPORT,LEGAL FEES,-15.00
09/09/2021,,LB of Brent,01/07/2021,Msft * E0800ez4gk,BRENT SICTS,ICT SOFTWARE,181.10
09/09/2021,,LB of Brent,02/07/2021,Discount Displays Ltd,DHSC - COVID TEST AND TRACE,STAFF DEVELOPMENT AND TRAINING,189.47
09/09/2021,,LB of Brent,02/07/2021,Companies House,LEGAL SUPPORT,LEGAL FEES,15.00
09/09/2021,,LB of Brent,02/07/2021,Companies House,LEGAL SUPPORT,LEGAL FEES,15.00
09/09/2021,,LB of Brent,02/07/2021,Companies House,LEGAL SUPPORT,LEGAL FEES,15.00
09/09/2021,,LB of Brent,02/07/2021,Companies House,LEGAL SUPPORT,LEGAL FEES,15.00
09/09/2021,,LB of Brent,02/07/2021,Tesco Store 2080,GORDON BROWN OUTDOOR EDUCATION CENTRE,CATERING AND VENDING SUPPLIES,153.78
09/09/2021,,LB of Brent,03/07/2021,Aws Emea,ICT Client and Applications Support,ICT SOFTWARE,1.29
09/09/2021,,LB of Brent,05/07/2021,Amazon.Co.Uk,Communications,STATIONERY,11.58
09/09/2021,,LB of Brent,05/07/2021,Amazon.Co.Uk,Communications,STATIONERY,18.25
09/09/2021,,LB of Brent,05/07/2021,Amazon.Co.Uk,Communications,STATIONERY,18.25
09/09/2021,,LB of Brent,05/07/2021,Amazon.Co.Uk,Communications,STATIONERY,18.25
09/09/2021,,LB of Brent,05/07/2021,Amazon.Co.Uk,Communications,STATIONERY,18.25
09/09/2021,,LB of Brent,05/07/2021,London Executive,Disrepair,COMPENSATION,"2,895.33"
09/09/2021,,LB of Brent,05/07/2021,Tesco Store 2080,GORDON BROWN OUTDOOR EDUCATION CENTRE,CATERING AND VENDING SUPPLIES,83.88
09/09/2021,,LB of Brent,05/07/2021,Amazon.Co.Uk,ADVICE & GUIDANCE,FACILITIES MANAGEMENT,480.00
09/09/2021,,LB of Brent,05/07/2021,Amazon.Co.Uk,SHORT BREAK CENTRE,CLEANING SERVICES,8.75
09/09/2021,,LB of Brent,05/07/2021,Photobox Limited,SHORT BREAK CENTRE,"PURCHASE - EQUIPMENT, FURNITURE AND MATERIALS",27.88
09/09/2021,,LB of Brent,05/07/2021,Companies House,LEGAL SUPPORT,LEGAL FEES,-15.00
09/09/2021,,LB of Brent,05/07/2021,Tesco Store 2080,GORDON BROWN OUTDOOR EDUCATION CENTRE,CATERING AND VENDING SUPPLIES,124.17
09/09/2021,,LB of Brent,06/07/2021,Amazon.Co.Uk,SHORT BREAK CENTRE,CLEANING SERVICES,10.82
09/09/2021,,LB of Brent,06/07/2021,Companies House,LEGAL SUPPORT,LEGAL FEES,15.00
09/09/2021,,LB of Brent,06/07/2021,Mkcl Deutschland Gmbh,BRENT SICTS,ICT SOFTWARE,371.63
09/09/2021,,LB of Brent,06/07/2021,Mkcl Deutschland Gmbh,LEWISHAM IT SHARED SERVICE,ICT SOFTWARE,310.64
09/09/2021,,LB of Brent,06/07/2021,Mkcl Deutschland Gmbh,SOUTHWARK IT SHARED SERVICE,ICT SOFTWARE,532.59
09/09/2021,,LB of Brent,07/07/2021,Clayton Crown Online,Disrepair,HOTEL AND OTHER ACCOMMODATION COSTS,"1,857.14"
09/09/2021,,LB of Brent,07/07/2021,Hook Veterinary Centre,GORDON BROWN OUTDOOR EDUCATION CENTRE,"MAINTENANCE - EQUIPMENT, FURNITURE AND MATERIALS",50.46
09/09/2021,,LB of Brent,07/07/2021,Booker Limited Basingstok,GORDON BROWN OUTDOOR EDUCATION CENTRE,CATERING AND VENDING SUPPLIES,76.54
09/09/2021,,LB of Brent,07/07/2021,Amznmktplace,DHSC - COVID TEST AND TRACE,STAFF DEVELOPMENT AND TRAINING,139.00
09/09/2021,,LB of Brent,07/07/2021,Tesco Store 2122,SHORT BREAK CENTRE,CATERING AND VENDING SUPPLIES,187.67
09/09/2021,,LB of Brent,07/07/2021,Www.Venuescanner.Com,CIVIC CENTRE CONFERENCE & EVENTS,MEMBERSHIP AND SUBSCRIPTIONS,99.00
09/09/2021,,LB of Brent,07/07/2021,Companies House,LEGAL SUPPORT,LEGAL FEES,15.00
09/09/2021,,LB of Brent,07/07/2021,Amznmktplace,BRENT FAMILY SOLUTIONS,MISCELLANEOUS EXPENSES,288.32
09/09/2021,,LB of Brent,07/07/2021,Amznmktplace,BRENT FAMILY SOLUTIONS,MISCELLANEOUS EXPENSES,288.32
09/09/2021,,LB of Brent,07/07/2021,Amznmktplace Amazon.Co.Uk,REVENUES,"PURCHASE - EQUIPMENT, FURNITURE AND MATERIALS",24.99
09/09/2021,,LB of Brent,08/07/2021,Chandler Harris Solici,Community Assets,SERVICE CHARGES,"4,873.07"
09/09/2021,,LB of Brent,08/07/2021,Amznmktplace,REVENUES,"PURCHASE - EQUIPMENT, FURNITURE AND MATERIALS",24.99
09/09/2021,,LB of Brent,08/07/2021,Amznmktplace,REVENUES,"PURCHASE - EQUIPMENT, FURNITURE AND MATERIALS",24.99
09/09/2021,,LB of Brent,08/07/2021,Amznmktplace,REVENUES,"PURCHASE - EQUIPMENT, FURNITURE AND MATERIALS",24.99
09/09/2021,,LB of Brent,08/07/2021,Spotify,CAMPAIGNS AND MEDIA,"ADVERTISING, PUBLICITY AND MARKETING",276.30
09/09/2021,,LB of Brent,08/07/2021,C2e786000198i Ukvi,SCHOOLS HR,LEGAL FEES,"3,199.00"
09/09/2021,,LB of Brent,08/07/2021,Google,DIGITAL COMMS,ICT MAINTENANCE AND SUPPORT,192.12
09/09/2021,,LB of Brent,08/07/2021,Companies House,LEGAL SUPPORT,LEGAL FEES,15.00
09/09/2021,,LB of Brent,08/07/2021,Tesco Store 2670,GORDON BROWN OUTDOOR EDUCATION CENTRE,CATERING AND VENDING SUPPLIES,44.00
09/09/2021,,LB of Brent,09/07/2021,Amz,TRANSFORMATION TEAM,"PURCHASE - EQUIPMENT, FURNITURE AND MATERIALS",-55.03
09/09/2021,,LB of Brent,09/07/2021,Amznmktplace,LOCALITY AND SAFEGUARDING MANAGEMENT TEAM,"PURCHASE - EQUIPMENT, FURNITURE AND MATERIALS",145.62
09/09/2021,,LB of Brent,09/07/2021,Amznmktplace Amazon.Co.Uk,DHSC - COVID TEST AND TRACE,STAFF DEVELOPMENT AND TRAINING,239.98
09/09/2021,,LB of Brent,11/07/2021,Amazon Prime,BRENT SICTS,POSTAGE AND COURIER SERVICES,2.03
09/09/2021,,LB of Brent,11/07/2021,Amazon Prime,LEWISHAM IT SHARED SERVICE,POSTAGE AND COURIER SERVICES,1.70
09/09/2021,,LB of Brent,11/07/2021,Amazon Prime,SOUTHWARK IT SHARED SERVICE,POSTAGE AND COURIER SERVICES,2.93
09/09/2021,,LB of Brent,12/07/2021,Hotel Ibis,EMERGENCY PLANNING,PROFESSIONAL SERVICES - GENERAL,100.00
09/09/2021,,LB of Brent,12/07/2021,Tesco Store 2080,GORDON BROWN OUTDOOR EDUCATION CENTRE,CATERING AND VENDING SUPPLIES,118.83
09/09/2021,,LB of Brent,13/07/2021,Jj Food Service - Basi,GORDON BROWN OUTDOOR EDUCATION CENTRE,CATERING AND VENDING SUPPLIES,46.61
09/09/2021,,LB of Brent,13/07/2021,Hotel Ibis,EMERGENCY PLANNING,PROFESSIONAL SERVICES - GENERAL,45.00
09/09/2021,,LB of Brent,13/07/2021,Hotel Ibis,EMERGENCY PLANNING,PROFESSIONAL SERVICES - GENERAL,55.00
09/09/2021,,LB of Brent,13/07/2021,Hotel Ibis,EMERGENCY PLANNING,PROFESSIONAL SERVICES - GENERAL,100.00
09/09/2021,,LB of Brent,13/07/2021,Amazon.Co.Uk,FACILITIES MANAGEMENT � EUROPA CONTRACT,"PURCHASE - EQUIPMENT, FURNITURE AND MATERIALS",22.50
09/09/2021,,LB of Brent,13/07/2021,Namesco,ONE ORACLE,ICT SOFTWARE,3.49
09/09/2021,,LB of Brent,14/07/2021,Screwfix Dir Ltd,GORDON BROWN OUTDOOR EDUCATION CENTRE,CYCLICAL/PLANNED MAINTENANCE - BUILDING,64.82
09/09/2021,,LB of Brent,14/07/2021,Shorts Group Ltd,GORDON BROWN OUTDOOR EDUCATION CENTRE,"MAINTENANCE - EQUIPMENT, FURNITURE AND MATERIALS",122.20
09/09/2021,,LB of Brent,14/07/2021,Jewson Ltd,GORDON BROWN OUTDOOR EDUCATION CENTRE,CYCLICAL/PLANNED MAINTENANCE - BUILDING,390.82
09/09/2021,,LB of Brent,14/07/2021,Hotel Ibis,EMERGENCY PLANNING,PROFESSIONAL SERVICES - GENERAL,20.00
09/09/2021,,LB of Brent,14/07/2021,Clayton Crown Online,EMERGENCY PLANNING,PROFESSIONAL SERVICES - GENERAL,160.00
09/09/2021,,LB of Brent,14/07/2021,Amazon.Co.Uk,CUSTOMER ACCESS IMPROVEMENT & PERFORMANCE,"PURCHASE - EQUIPMENT, FURNITURE AND MATERIALS",4.16
09/09/2021,,LB of Brent,14/07/2021,Tesco Store 2122,SHORT BREAK CENTRE,CATERING AND VENDING SUPPLIES,166.72
09/09/2021,,LB of Brent,14/07/2021,Zoom.Us 888-799-9666,SOUTHWARK IT SHARED SERVICE,ICT SOFTWARE,"2,079.07"
09/09/2021,,LB of Brent,14/07/2021,Amznmktplace,BRENT FAMILY SOLUTIONS,MISCELLANEOUS EXPENSES,58.98
09/09/2021,,LB of Brent,15/07/2021,Clayton Crown Online,EMERGENCY PLANNING,PROFESSIONAL SERVICES - GENERAL,160.00
09/09/2021,,LB of Brent,15/07/2021,Amznmktplace,LEGAL SUPPORT,STATIONERY,182.43
09/09/2021,,LB of Brent,15/07/2021,Bls*monday.Com,IT OPERATIONS,ICT SOFTWARE,55.00
09/09/2021,,LB of Brent,15/07/2021,Amznmktplace,BRENT FAMILY SOLUTIONS,MISCELLANEOUS EXPENSES,39.90
09/09/2021,,LB of Brent,16/07/2021,Amz,Communications,STATIONERY,-11.58
09/09/2021,,LB of Brent,16/07/2021,Amz,Communications,STATIONERY,-18.25
09/09/2021,,LB of Brent,16/07/2021,Amz,Communications,STATIONERY,-18.25
09/09/2021,,LB of Brent,16/07/2021,Amz,Communications,STATIONERY,-18.25
09/09/2021,,LB of Brent,16/07/2021,Amz,Communications,STATIONERY,-18.25
09/09/2021,,LB of Brent,16/07/2021,Clayton Crown Online,EMERGENCY PLANNING,PROFESSIONAL SERVICES - GENERAL,320.00
09/09/2021,,LB of Brent,16/07/2021,Facebk *f3whu5btv2,CAMPAIGNS AND MEDIA,"ADVERTISING, PUBLICITY AND MARKETING",500.00
09/09/2021,,LB of Brent,16/07/2021,Pantheon Systems Inc,DIGITAL COMMS,ICT MAINTENANCE AND SUPPORT,26.19
09/09/2021,,LB of Brent,17/07/2021,Adobe.Com,HR SERVICES,"ADVERTISING, PUBLICITY AND MARKETING",16.64
09/09/2021,,LB of Brent,18/07/2021,Amazon.Co.Uk,BRENT FAMILY SOLUTIONS,MISCELLANEOUS EXPENSES,178.03
09/09/2021,,LB of Brent,18/07/2021,Amznmktplace,BRENT FAMILY SOLUTIONS,MISCELLANEOUS EXPENSES,244.25
09/09/2021,,LB of Brent,19/07/2021,London Executive,Disrepair,BED & BREAKFAST - PRIVATE CONTRACTORS PAYMENT,"1,447.67"
09/09/2021,,LB of Brent,19/07/2021,Jewson Ltd,GORDON BROWN OUTDOOR EDUCATION CENTRE,CYCLICAL/PLANNED MAINTENANCE - BUILDING,326.55
09/09/2021,,LB of Brent,19/07/2021,Atlassian,DIGITAL COMMS,ICT MAINTENANCE AND SUPPORT,7.54
09/09/2021,,LB of Brent,19/07/2021,Oyster Online,BRENT FAMILY SOLUTIONS,TRANSPORT COSTS - STAFF,46.80
09/09/2021,,LB of Brent,19/07/2021,Oyster Online,BRENT FAMILY SOLUTIONS,TRANSPORT COSTS - STAFF,50.00
09/09/2021,,LB of Brent,19/07/2021,Clayton Crown Online,EMERGENCY PLANNING,PROFESSIONAL SERVICES - GENERAL,80.00
09/09/2021,,LB of Brent,20/07/2021,Jemca- Edgware Rd,MAYOR,VEHICLE REPAIRS AND MAINTENANCE,258.33
09/09/2021,,LB of Brent,20/07/2021,Amznmktplace,SHORT BREAK CENTRE,"PURCHASE - EQUIPMENT, FURNITURE AND MATERIALS",273.64
09/09/2021,,LB of Brent,20/07/2021,Hotjar,DIGITAL COMMS,ICT MAINTENANCE AND SUPPORT,34.82
09/09/2021,,LB of Brent,20/07/2021,Namesco,MOPAC Rescue and Response,ICT SOFTWARE,3.49
09/09/2021,,LB of Brent,21/07/2021,Aa Membership,MAYOR,VEHICLE REPAIRS AND MAINTENANCE,226.62
09/09/2021,,LB of Brent,21/07/2021,Tesco Store 2122,SHORT BREAK CENTRE,CATERING AND VENDING SUPPLIES,165.59
09/09/2021,,LB of Brent,22/07/2021,Marks&spencer Plc,Housing Stakeholder Management,EVENTS,183.33
09/09/2021,,LB of Brent,22/07/2021,Wembley Park,GORDON BROWN OUTDOOR EDUCATION CENTRE,VEHICLE LICENSING,4.17
09/09/2021,,LB of Brent,22/07/2021,Tesco Store 3411,GORDON BROWN OUTDOOR EDUCATION CENTRE,CATERING AND VENDING SUPPLIES,15.53
09/09/2021,,LB of Brent,22/07/2021,Amznmktplace,MAYOR,"PURCHASE - EQUIPMENT, FURNITURE AND MATERIALS",23.31
09/09/2021,,LB of Brent,23/07/2021,Amznmktplace,Communications,STATIONERY,26.16
09/09/2021,,LB of Brent,24/07/2021,Facebk *t4m236btv2,CAMPAIGNS AND MEDIA,"ADVERTISING, PUBLICITY AND MARKETING",500.00
09/09/2021,,LB of Brent,26/07/2021,Argos Ltd,YJB DISPROPORTIONATELY PROJECT,SERVICE CHARGES,419.99
09/09/2021,,LB of Brent,27/07/2021,Amz*yanyanxur,Communications,STATIONERY,-6.66
09/09/2021,,LB of Brent,27/07/2021,Amznmktplace,MANAGEMENT (CUSTOMER SERVICES),"PURCHASE - EQUIPMENT, FURNITURE AND MATERIALS",33.33
09/09/2021,,LB of Brent,27/07/2021,Posturite Ltd,LAND CHARGES,"PURCHASE - EQUIPMENT, FURNITURE AND MATERIALS",150.83
09/09/2021,,LB of Brent,27/07/2021,Amznmktplace,CUSTOMER ACCESS IMPROVEMENT & PERFORMANCE,"PURCHASE - EQUIPMENT, FURNITURE AND MATERIALS",31.67
09/09/2021,,LB of Brent,27/07/2021,Amznmktplace Amazon.Co.Uk,CUSTOMER ACCESS IMPROVEMENT & PERFORMANCE,"PURCHASE - EQUIPMENT, FURNITURE AND MATERIALS",6.66
09/09/2021,,LB of Brent,28/07/2021,Tesco Store 2122,SHORT BREAK CENTRE,CATERING AND VENDING SUPPLIES,174.01
09/09/2021,,LB of Brent,29/07/2021,Facebk *yy62t6ftv2,CAMPAIGNS AND MEDIA,"ADVERTISING, PUBLICITY AND MARKETING",142.07
09/09/2021,,LB of Brent,29/07/2021,Sainsburys Smkt,BRENT FAMILY SOLUTIONS,MISCELLANEOUS EXPENSES,60.00
09/09/2021,,LB of Brent,29/07/2021,Sainsburys Smkt,BRENT FAMILY SOLUTIONS,MISCELLANEOUS EXPENSES,200.00
09/09/2021,,LB of Brent,29/07/2021,Amznmktplace Amazon.Co.Uk,TRANSFORMATION TEAM,"PURCHASE - EQUIPMENT, FURNITURE AND MATERIALS",9.98
09/09/2021,,LB of Brent,30/07/2021,Amz,CUSTOMER ACCESS IMPROVEMENT & PERFORMANCE,"PURCHASE - EQUIPMENT, FURNITURE AND MATERIALS",-14.24
09/09/2021,,LB of Brent,30/07/2021,Amznmktplace,OPERATIONAL COSTS - FACILITIES,"PURCHASE - EQUIPMENT, FURNITURE AND MATERIALS",80.30
09/09/2021,,LB of Brent,01/08/2021,Spotify,CAMPAIGNS AND MEDIA,"ADVERTISING, PUBLICITY AND MARKETING",107.43
09/09/2021,,LB of Brent,01/08/2021,Amznmktplace,BRENT SICTS,ICT HARDWARE,95.88
09/09/2021,,LB of Brent,01/08/2021,Amz*salesukonline,BRENT FAMILY SOLUTIONS,MISCELLANEOUS EXPENSES,-43.89
09/09/2021,,LB of Brent,02/08/2021,Amznmktplace,LEGAL SUPPORT,"PURCHASE - EQUIPMENT, FURNITURE AND MATERIALS",29.98
09/09/2021,,LB of Brent,02/08/2021,Amznmktplace,BRENT FAMILY SOLUTIONS,MISCELLANEOUS EXPENSES,27.39
09/09/2021,,LB of Brent,02/08/2021,Amznmktplace Amazon.Co.Uk,POLICY (PLANNING),"PURCHASE - EQUIPMENT, FURNITURE AND MATERIALS",86.92
09/09/2021,,LB of Brent,03/08/2021,Amazon.Co.Uk,CUSTOMER ACCESS IMPROVEMENT & PERFORMANCE,STATIONERY,4.99
09/09/2021,,LB of Brent,03/08/2021,Amznmktplace,POLITICAL GROUP SUPPORT,"PURCHASE - EQUIPMENT, FURNITURE AND MATERIALS",14.16
09/09/2021,,LB of Brent,03/08/2021,Government Events,MEMBER DEVELOPMENT,CONFERENCE EXPENSES,474.00
09/09/2021,,LB of Brent,03/08/2021,Tesco Store 2122,SHORT BREAK CENTRE,CATERING AND VENDING SUPPLIES,152.39
09/09/2021,,LB of Brent,03/08/2021,Sportsdirect.Com,BRENT FAMILY SOLUTIONS,MISCELLANEOUS EXPENSES,37.98
09/09/2021,,LB of Brent,04/08/2021,Hotel Ibis,EMERGENCY PLANNING,PROFESSIONAL SERVICES - GENERAL,112.38
09/09/2021,,LB of Brent,04/08/2021,Amznmktplace,REVENUES,"PURCHASE - EQUIPMENT, FURNITURE AND MATERIALS",6.18
09/09/2021,,LB of Brent,04/08/2021,Amazon.Co.Uk,OPERATIONAL COSTS - FACILITIES,"PURCHASE - EQUIPMENT, FURNITURE AND MATERIALS",37.49
09/09/2021,,LB of Brent,04/08/2021,Sainsburys.Co.Uk,EARLY YEARS CENTRAL SERVICES,SERVICE CHARGES,73.75
09/09/2021,,LB of Brent,04/08/2021,Fs *techsmith,IT OPERATIONS,ICT SOFTWARE,161.49
09/09/2021,,LB of Brent,05/08/2021,Amznmktplace,OPERATIONAL COSTS - FACILITIES,STATIONERY,12.48
09/09/2021,,LB of Brent,08/08/2021,Amznmktplace,DIGITAL POST ROOM,STATIONERY,9.23
09/09/2021,,LB of Brent,09/08/2021,Amazon.Co.Uk,LEGAL SUPPORT,"PURCHASE - EQUIPMENT, FURNITURE AND MATERIALS",9.38
09/09/2021,,LB of Brent,09/08/2021,Sainsburys S/Mkts,BRENT FAMILY SOLUTIONS,MISCELLANEOUS EXPENSES,120.00
09/09/2021,,LB of Brent,10/08/2021,Tesco Store 2122,SHORT BREAK CENTRE,CATERING AND VENDING SUPPLIES,43.22
09/09/2021,,LB of Brent,10/08/2021,Team Sport Karting,YJB DISPROPORTIONATELY PROJECT,PROFESSIONAL SERVICES - GENERAL,340.20
09/09/2021,,LB of Brent,10/08/2021,Sainsburys Wembley,BRENT FAMILY SOLUTIONS,MISCELLANEOUS EXPENSES,150.00
09/09/2021,,LB of Brent,10/08/2021,Sainsburys Wembley,BRENT FAMILY SOLUTIONS,MISCELLANEOUS EXPENSES,250.00
09/09/2021,,LB of Brent,11/08/2021,Tesco Store 2122,SHORT BREAK CENTRE,CATERING AND VENDING SUPPLIES,-1.09
09/09/2021,,LB of Brent,11/08/2021,Tesco Store 2122,SHORT BREAK CENTRE,CATERING AND VENDING SUPPLIES,145.34
09/09/2021,,LB of Brent,12/08/2021,One4all,EARLY YEARS CENTRAL SERVICES,SERVICE CHARGES,350.00
09/09/2021,,LB of Brent,12/08/2021,Hilton Hotels,EMERGENCY PLANNING,PROFESSIONAL SERVICES - GENERAL,724.76
09/09/2021,,LB of Brent,13/08/2021,Www.Just Eat.Co.Uk,EARLY YEARS CENTRAL SERVICES,SERVICE CHARGES,25.88
09/09/2021,,LB of Brent,13/08/2021,Sainsburys.Co.Uk,EARLY YEARS CENTRAL SERVICES,SERVICE CHARGES,65.55
09/09/2021,,LB of Brent,13/08/2021,Sainsburys.Co.Uk,EARLY YEARS CENTRAL SERVICES,SERVICE CHARGES,69.45
09/09/2021,,LB of Brent,14/08/2021,Deliveroo,EARLY YEARS CENTRAL SERVICES,SERVICE CHARGES,82.89
09/09/2021,,LB of Brent,15/08/2021,Amznmktplace,BRENT SICTS,ICT HARDWARE,41.66
09/09/2021,,LB of Brent,15/08/2021,Bls*monday.Com,LEWISHAM IT SHARED SERVICE,ICT SOFTWARE,24.11
09/09/2021,,LB of Brent,15/08/2021,Bls*monday.Com,BRENT SICTS,ICT SOFTWARE,16.83
09/09/2021,,LB of Brent,15/08/2021,Bls*monday.Com,SOUTHWARK IT SHARED SERVICE,ICT SOFTWARE,14.07
09/09/2021,,LB of Brent,17/08/2021,Amznmktplace,Communications,STATIONERY,17.49
09/09/2021,,LB of Brent,17/08/2021,Cadent Gas,V5 Repairs - M&E,SURVEYS,"2,415.00"
09/09/2021,,LB of Brent,17/08/2021,Adobe.Com,HR SERVICES,"ADVERTISING, PUBLICITY AND MARKETING",16.64
09/09/2021,,LB of Brent,18/08/2021,Ncp Prebook,Central Overheads,TRANSPORT COSTS - STAFF,93.33
09/09/2021,,LB of Brent,18/08/2021,Tesco Store 2122,SHORT BREAK CENTRE,CATERING AND VENDING SUPPLIES,171.74
09/09/2021,,LB of Brent,20/08/2021,Paypal,HOUSING NEEDS OPERATIONAL,"BOOKS, PUBLICATIONS AND RESOURCES",299.50
09/09/2021,,LB of Brent,22/08/2021,Cass Art,EARLY YEARS CENTRAL SERVICES,SERVICE CHARGES,75.00
09/09/2021,,LB of Brent,22/08/2021,One4all,EARLY YEARS CENTRAL SERVICES,SERVICE CHARGES,400.00
09/09/2021,,LB of Brent,23/08/2021,Hobbycraft Trading Limite,EARLY YEARS CENTRAL SERVICES,SERVICE CHARGES,70.00
09/09/2021,,LB of Brent,24/08/2021,Sainsburys S/Mkts,BRENT FAMILY SOLUTIONS,MISCELLANEOUS EXPENSES,15.10
09/09/2021,,LB of Brent,25/08/2021,Tesco Store 2122,SHORT BREAK CENTRE,CATERING AND VENDING SUPPLIES,135.11
09/09/2021,,LB of Brent,25/08/2021,Amznmktplace,EARLY YEARS CENTRAL SERVICES,SERVICE CHARGES,41.55
09/09/2021,,LB of Brent,27/08/2021,Aa Membership,MAYOR,VEHICLE REPAIRS AND MAINTENANCE,-226.62
09/09/2021,,LB of Brent,28/08/2021,One4all,EARLY YEARS CENTRAL SERVICES,SERVICE CHARGES,320.00
